Workbook

Sheet Лист1
J1: Приложение № 1 к постановлению руководителя Исполнительного комитета Сармановского муниципального района _________________________________ от ___________2018г. № _______
B13: Расчет цены на оказание платной услуги по учреждениям образования Сармановского муниципального района РТ
B16: Муниципальные бюджетные дошкольные образовательные учреждения
B18: Вид расходов | C18: Дж ДОУ №1 | D18: Дж ДОУ № 3 | E18: Дж ДОУ № 4 | F18: Дж ДОУ № 5 | G18: Дж ДОУ № 6 | H18: Дж ДОУ № 7 | I18: Сарм ДОУ № 1 | J18: Сарм ДОУ № 2 | K18: Сарм ДОУ № 3 | L18: Сарм ДОУ № 4 | M18: П-Завод ДОУ | N18: Сельские ДОУ
B20: Общая площадь здания | C20: 1460.3 | D20: 1717.3 | E20: 1670.1 | F20: 1983.9 | G20: 3598 | H20: 2001.4 | I20: 1085.1 | J20: 1151.1 | K20: 1670.9 | L20: 2585.8 | M20: 1053.9 | N20: 1053.9
B21: Площадь для занятий | C21: 60 | D21: 60 | E21: 60 | F21: 60 | G21: 60 | H21: 60 | I21: 60 | J21: 60 | K21: 60 | L21: 60 | M21: 60 | N21: 60
B22: Количество занятий в месяц | C22: 4 | D22: 4 | E22: 4 | F22: 4 | G22: 4 | H22: 4 | I22: 4 | J22: 4 | K22: 4 | L22: 4 | M22: 4 | N22: 4
B23: Количество детей в группе | C23: 15 | D23: 15 | E23: 15 | F23: 15 | G23: 15 | H23: 15 | I23: 15 | J23: 15 | K23: 15 | L23: 15 | M23: 15 | N23: 15
B24: Стоимость используемого оборудованя, мат. Запасов | C24: 34825 | D24: 34825 | E24: 34825 | F24: 34825 | G24: 34825 | H24: 34825 | I24: 34825 | J24: 34825 | K24: 34825 | L24: 34825 | M24: 34825 | N24: 34825
B25: Количество потребленной электроэнергии в год | C25: 47560 | D25: 56680 | E25: 40740 | F25: 37020 | G25: 63120 | H25: 32250 | I25: 52098 | J25: 49160 | K25: 45407 | L25: 90970 | M25: 17483 | N25: 17483
B27: Оплата труда на 1 обучающего
B28: Оклад | C28: 14232 | D28: 14232 | E28: 14232 | F28: 14232 | G28: 14232 | H28: 14232 | I28: 14232 | J28: 14232 | K28: 14232 | L28: 14232 | M28: 14232 | N28: 14232
B29: 1 категориия к окладу | C29: 3842.64 | D29: 3842.64 | E29: 3842.64 | F29: 3842.64 | G29: 3842.64 | H29: 3842.64 | I29: 3842.64 | J29: 3842.64 | K29: 3842.64 | L29: 3842.64 | M29: 3842.64 | N29: 3842.64
B30: Итого | C30: =C28+C29 -> 18074.64 | D30: =D28+D29 -> 18074.64 | E30: 18074.64 | F30: 18074.64 | G30: 18074.64 | H30: 18074.64 | I30: 18074.64 | J30: 18074.64 | K30: 18074.64 | L30: 18074.64 | M30: 18074.64 | N30: 18074.64
B31: Начисление на заработную плату | C31: =C30*30.2% -> 5458.54 | D31: =D30*30.2% -> 5458.54 | E31: =E30*30.2% -> 5458.54 | F31: 5458.54 | G31: 5458.54 | H31: 5458.54 | I31: 5458.54 | J31: 5458.54 | K31: 5458.54 | L31: 5458.54 | M31: 5458.54 | N31: 5458.54
B32: Всего | C32: =C30+C31 -> 23533.18128 | D32: =D30+D31 -> 23533.18128 | E32: 23533.18128 | F32: 23533.18128 | G32: 23533.18128 | H32: 23533.18128 | I32: 23533.18128 | J32: 23533.18128 | K32: 23533.18128 | L32: 23533.18128 | M32: 23533.18128 | N32: 23533.18128
B33: Нагрузка пед персонала | C33: 18 | D33: 18 | E33: 18 | F33: 18 | G33: 18 | H33: 18 | I33: 18 | J33: 18 | K33: 18 | L33: 18 | M33: 18 | N33: 18
B34: Количество недель в месяце | C34: 4 | D34: 4 | E34: 4 | F34: 4 | G34: 4 | H34: 4 | I34: 4 | J34: 4 | K34: 4 | L34: 4 | M34: 4 | N34: 4
B35: Количество детей в группе | C35: 15 | D35: 15 | E35: 15 | F35: 15 | G35: 15 | H35: 15 | I35: 15 | J35: 15 | K35: 15 | L35: 15 | M35: 15 | N35: 15
B36: Всего оплата труда | C36: =C32/C33/C34/C35 -> 21.79 | D36: =D32/D33/D34/D35 -> 21.79 | E36: 21.79 | F36: 21.79 | G36: 21.79 | H36: 21.79 | I36: 21.79 | J36: 21.79 | K36: 21.79 | L36: 21.79 | M36: 21.79 | N36: 21.79
B41: Затраты на материальные запасы на 1 ребенка
B42: Материальные запасы | C42: 34825 | D42: 34825 | E42: 34825 | F42: 34825 | G42: 34825 | H42: 34825 | I42: 34825 | J42: 34825 | K42: 34825 | L42: 34825 | M42: 34825 | N42: 34825
B43: Количество месяцев | C43: 36 | D43: 36 | E43: 36 | F43: 36 | G43: 36 | H43: 36 | I43: 36 | J43: 36 | K43: 36 | L43: 36 | M43: 36 | N43: 36
B44: Количество недель в месяце | C44: 4 | D44: 4 | E44: 4 | F44: 4 | G44: 4 | H44: 4 | I44: 4 | J44: 4 | K44: 4 | L44: 4 | M44: 4 | N44: 4
B45: Количество детей в группе | C45: 15 | D45: 15 | E45: 15 | F45: 15 | G45: 15 | H45: 15 | I45: 15 | J45: 15 | K45: 15 | L45: 15 | M45: 15 | N45: 15
B46: Всег по материальным запасам | C46: =C42/C43/C44/C45 -> 16.12 | D46: =D42/D43/D44/D45 -> 16.12 | E46: 16.12 | F46: 16.12 | G46: 16.12 | H46: 16.12 | I46: 16.12 | J46: 16.12 | K46: 16.12 | L46: 16.12 | M46: 16.12 | N46: 16.12
B48: Расчет накладных затрат
B49: Прогноз затрат АУП
B50: Прогноз затрат общехозяйственного назначения | C50: =C115+C123+C140 -> 12.60 | D50: =D115+D123+D140 -> 12.57 | E50: 12.50 | F50: 12.41 | G50: 12.32 | H50: 12.39 | I50: 12.40 | J50: 12.36 | K50: 12.15 | L50: 12.17 | M50: 12.10 | N50: 12.04
B51: Прогноз суммы начисленной амортизации имущества общехоз. назначения | C51: 15.96 | D51: 15.96 | E51: 15.96 | F51: 15.96 | G51: 15.96 | H51: 15.96 | I51: 15.96 | J51: 15.96 | K51: 15.96 | L51: 15.96 | M51: 15.96 | N51: 15.96
B52: Прогноз ФОТ основного персонала | C52: 21.79 | D52: 21.79 | E52: 21.79 | F52: 21.79 | G52: 21.79 | H52: 21.79 | I52: 21.79 | J52: 21.79 | K52: 21.79 | L52: 21.79 | M52: 21.79 | N52: 21.79
B53: Коэффициент накладных затрат | C53: 0.61 | D53: 0.61 | E53: 0.61 | F53: 0.61 | G53: 0.61 | H53: 0.61 | I53: 0.61 | J53: 0.61 | K53: 0.61 | L53: 0.61 | M53: 0.61 | N53: 0.61
B54: Затраты на основной персонал | C54: 16.56 | D54: 16.56 | E54: 16.56 | F54: 16.56 | G54: 16.56 | H54: 16.56 | I54: 16.56 | J54: 16.56 | K54: 16.56 | L54: 16.56 | M54: 16.56 | N54: 16.56
B55: Итого накладные затраты (в час на 1 ребенка) | C55: 12.60 | D55: 12.57 | E55: 12.50 | F55: 12.41 | G55: 12.32 | H55: 12.39 | I55: 12.4 | J55: 12.36 | K55: 12.15 | L55: 12.17 | M55: 12.1 | N55: 12.04
B57: Затраты на коммунальные услуги (2017год)
B58: Электроэнергия за год кВТ/час | C58: 47560 | D58: 56680 | E58: 40740 | F58: 37020 | G58: 63120 | H58: 32250 | I58: 52098 | J58: 49160 | K58: 45407 | L58: 90970 | M58: 17483 | N58: 17483
B59: Количество дней в году | C59: 248 | D59: 248 | E59: 248 | F59: 248 | G59: 248 | H59: 248 | I59: 248 | J59: 248 | K59: 248 | L59: 296 | M59: 248 | N59: 248
B60: Часы | C60: 12 | D60: 12 | E60: 12 | F60: 12 | G60: 12 | H60: 12 | I60: 12 | J60: 12 | K60: 12 | L60: 12 | M60: 12 | N60: 12
B61: Площадь здания | C61: 1460.3 | D61: 1717.3 | E61: 1670.1 | F61: 1983.9 | G61: 3598 | H61: 2001.4 | I61: 1085.1 | J61: 1151.1 | K61: 1670.9 | L61: 2585.8 | M61: 1053.9 | N61: 1053.9
B62: Площадь для занятий | C62: 60 | D62: 60 | E62: 60 | F62: 60 | G62: 60 | H62: 60 | I62: 60 | J62: 60 | K62: 60 | L62: 60 | M62: 60 | N62: 60
B63: Всего кВТ на 1 занятие | C63: =C58/C59/C60/C61*C62 -> 0.657 | D63: =D58/D59/D60/D61*D62 -> 0.665 | E63: 0.492 | F63: 0.376 | G63: 0.354 | H63: 0.325 | I63: 0.968 | J63: 0.861 | K63: 0.548 | L63: 0.594 | M63: 0.334 | N63: 0.334
B64: Тариф | C64: 6.5705 | D64: 6.5705 | E64: 6.5705 | F64: 6.5705 | G64: 6.5705 | H64: 6.5705 | I64: 6.5705 | J64: 6.5705 | K64: 6.5705 | L64: 6.5705 | M64: 6.5705 | N64: 6.5705
B65: Электроэнергия Итого | C65: =C63*C64 -> 4.31 | D65: =D63*D64 -> 4.37 | E65: 3.23 | F65: 2.47 | G65: 2.32 | H65: 2.13 | I65: 6.36 | J65: 5.66 | K65: 3.60 | L65: 3.90 | M65: 2.20 | N65: 2.20
B66: Вода
B67: Норматив в день на 1 ребенка, л | C67: 75 | D67: 75 | E67: 75 | F67: 75 | G67: 75 | H67: 75 | I67: 75 | J67: 75 | K67: 75 | L67: 75 | M67: 75 | N67: 75
B68: Часы работы | C68: 12 | D68: 12 | E68: 12 | F68: 12 | G68: 12 | H68: 12 | I68: 12 | J68: 12 | K68: 12 | L68: 12 | M68: 12 | N68: 12
B69: Показатель | C69: 1000 | D69: 1000 | E69: 1000 | F69: 1000 | G69: 1000 | H69: 1000 | I69: 1000 | J69: 1000 | K69: 1000 | L69: 1000 | M69: 1000 | N69: 1000
B70: Итого м. куб. | C70: =C67/C68/C69 -> 0.00625 | D70: =D67/D68/D69 -> 0.00625 | E70: 0.00625 | F70: 0.00625 | G70: 0.00625 | H70: 0.00625 | I70: 0.00625 | J70: 0.00625 | K70: 0.00625 | L70: 0.00625 | M70: 0.00625 | N70: 0.00625
B71: Тариф | C71: 50.10 | D71: 50.10 | E71: 50.10 | F71: 50.10 | G71: 50.10 | H71: 50.10 | I71: 26.88 | J71: 26.88 | K71: 26.88 | L71: 26.88 | M71: 26.72 | N71: 26.72
B72: Количество детей | C72: 15 | D72: 15 | E72: 15 | F72: 15 | G72: 15 | H72: 15 | I72: 15 | J72: 15 | K72: 15 | L72: 15 | M72: 15 | N72: 15
B73: Всего на 1 занятие | C73: =C70*C71*C72 -> 4.70 | D73: 4.70 | E73: 4.70 | F73: 4.70 | G73: 4.70 | H73: 4.70 | I73: 2.52 | J73: 2.52 | K73: 2.52 | L73: 2.52 | M73: 2.51 | N73: 2.51
B74: Норматив на двух работников ( воспитатель, уборщица), л | C74: 40 | D74: 40 | E74: 40 | F74: 40 | G74: 40 | H74: 40 | I74: 40 | J74: 40 | K74: 40 | L74: 40 | M74: 40 | N74: 40
B75: Часы работы | C75: 12 | D75: 12 | E75: 12 | F75: 12 | G75: 12 | H75: 12 | I75: 12 | J75: 12 | K75: 12 | L75: 12 | M75: 12 | N75: 12
B76: Показатель | C76: 1000 | D76: 1000 | E76: 1000 | F76: 1000 | G76: 1000 | H76: 1000 | I76: 1000 | J76: 1000 | K76: 1000 | L76: 1000 | M76: 1000 | N76: 1000
B77: Итого м. куб. | C77: =C74/C75/C76 -> 0.003 | D77: =D74/D75/D76 -> 0.003 | E77: 0.003 | F77: 0.003 | G77: 0.003 | H77: 0.003 | I77: 0.003 | J77: 0.003 | K77: 0.003 | L77: 0.003 | M77: 0.003 | N77: 0.003
B78: Тариф | C78: 50.10 | D78: 50.10 | E78: 50.10 | F78: 50.10 | G78: 50.10 | H78: 50.10 | I78: 26.88 | J78: 26.88 | K78: 26.88 | L78: 26.88 | M78: 26.72 | N78: 26.72
B79: Всего по персоналу | C79: =C77*C78 -> 0.17 | D79: =D77*D78 -> 0.17 | E79: 0.17 | F79: 0.17 | G79: 0.17 | H79: 0.17 | I79: 0.09 | J79: 0.09 | K79: 0.09 | L79: 0.09 | M79: 0.09 | N79: 0.09
B80: На мытье полов, л | C80: 75 | D80: 75 | E80: 75 | F80: 75 | G80: 75 | H80: 75 | I80: 75 | J80: 75 | K80: 75 | L80: 75 | M80: 75 | N80: 75
B81: Показатель | C81: 1000 | D81: 1000 | E81: 1000 | F81: 1000 | G81: 1000 | H81: 1000 | I81: 1000 | J81: 1000 | K81: 1000 | L81: 1000 | M81: 1000 | N81: 1000
B82: Итого м. куб. | C82: =C80/C81 -> 0.075 | D82: =D80/D81 -> 0.075 | E82: 0.075 | F82: 0.075 | G82: 0.075 | H82: 0.075 | I82: 0.075 | J82: 0.075 | K82: 0.075 | L82: 0.075 | M82: 0.075 | N82: 0.075
B83: Тариф | C83: 50.10 | D83: 50.10 | E83: 50.10 | F83: 50.10 | G83: 50.10 | H83: 50.10 | I83: 26.88 | J83: 26.88 | K83: 26.88 | L83: 26.88 | M83: 26.72 | N83: 26.72
B84: Всего на мытье полов | C84: =C82*C83 -> 3.76 | D84: =D82*D83 -> 3.76 | E84: 3.76 | F84: 3.76 | G84: 3.76 | H84: 3.76 | I84: 2.02 | J84: 2.02 | K84: 2.02 | L84: 2.02 | M84: 2.00 | N84: 2.00
B85: Водоотведение, куб.м. | C85: 0.085 | D85: 0.085 | E85: 0.085 | F85: 0.085 | G85: 0.085 | H85: 0.085 | I85: 0.085 | J85: 0.085 | K85: 0.085 | L85: 0.085 | M85: 0.085 | N85: 0.085
B86: Тариф | C86: 28.39 | D86: 28.39 | E86: 28.39 | F86: 28.39 | G86: 28.39 | H86: 28.39 | I86: 35.10 | J86: 35.10 | K86: 35.10 | L86: 35.10 | M86: 35.10 | N86: 35.10
B87: Всего по водоотведению | C87: =C85*C86 -> 2.41 | D87: =D85*D86 -> 2.41 | E87: 2.41 | F87: 2.41 | G87: 2.41 | H87: 2.41 | I87: 2.98 | J87: 2.98 | K87: 2.98 | L87: 2.98 | M87: 2.98 | N87: 2.98
B88: Всего расходов по водоснабжению и водоотведению | C88: =C73+C79+C84+C87 -> 11.03 | D88: =D73+D79+D84+D87 -> 11.03 | E88: 11.03 | F88: 11.03 | G88: 11.03 | H88: 11.03 | I88: 7.61 | J88: 7.61 | K88: 7.61 | L88: 7.61 | M88: 7.58 | N88: 7.58
B89: Отопление
B90: Фактические расходы, гкал | C90: 299 | D90: 299 | E90: 299 | F90: 299 | G90: 299 | H90: 299
B91: Отопительный период | C91: 8 | D91: 8 | E91: 8 | F91: 8 | G91: 8 | H91: 8
B92: Количество Гкал в месяц | C92: =C90/C91 -> 37.38 | D92: =D90/D91 -> 37.38 | E92: 37.38 | F92: 37.38 | G92: 37.38 | H92: 37.38
B93: Площадь здания | C93: 1460.3 | D93: 1717.3 | E93: 1670.1 | F93: 1983.9 | G93: 3598 | H93: 2001.4
B94: Площадь для занятий | C94: 60 | D94: 60 | E94: 60 | F94: 60 | G94: 60 | H94: 60
B95: количество дней | C95: 30 | D95: 30 | E95: 30 | F95: 30 | G95: 30 | H95: 30
B96: Количество работы | C96: 24 | D96: 24 | E96: 24 | F96: 24 | G96: 24 | H96: 24
B97: Расходы на 1 час | C97: 1 | D97: 1 | E97: 1 | F97: 1 | G97: 1 | H97: 1
B98: Количество Гкал в месяц | C98: =C92/C93*C94/C95/C96/C97 -> 0.0021 | D98: =D92/D93*D94/D95/D96/D97 -> 0.0018 | E98: 0.0019 | F98: 0.0016 | G98: 0.0009 | H98: 0.0016
B99: Тариф | C99: 1808.56 | D99: 1808.56 | E99: 1808.56 | F99: 1808.56 | G99: 1808.56 | H99: 1808.56
B100: Всего по отоплению | C100: =C98*C99 -> 3.86 | D100: =D98*D99 -> 3.28 | E100: 3.37 | F100: 2.84 | G100: 1.57 | H100: 2.81
B102: Газ на отопление
B103: Фактические расходы, 10000куб.м. | I103: 34.934 | J103: 40.303 | K103: 32.272 | L103: 45.187 | M103: 30.391 | N103: 15.631
B104: Отопительный период | I104: 8 | J104: 8 | K104: 8 | L104: 8 | M104: 8 | N104: 8
B105: Количество куб.м. в месяц | I105: =I103/I104 -> 4.37 | J105: =J103/J104 -> 5.04 | K105: 4.03 | L105: 5.65 | M105: 3.80 | N105: 1.95
B106: Площадь здания | I106: 1085.1 | J106: 1151.1 | K106: 1670.9 | L106: 2585.8 | M106: 1053.9 | N106: 1053.9
B107: Площадь для занятий | I107: 60 | J107: 60 | K107: 60 | L107: 60 | M107: 60 | N107: 60
B108: количество дней | I108: 30 | J108: 30 | K108: 30 | L108: 30 | M108: 30 | N108: 30
B109: Количество работы, час | I109: 24 | J109: 24 | K109: 24 | L109: 24 | M109: 24 | N109: 24
B110: Расходы на 1 час | I110: 1 | J110: 1 | K110: 1 | L110: 1 | M110: 1 | N110: 1
B111: Количество куб.м. в месяц | I111: =I105/I106*I107/I108/I109/I110 -> 0.0003 | J111: =J105/J106*J107/J108/J109/J110 -> 0.0004 | K111: 0.0002 | L111: 0.0002 | M111: 0.0003 | N111: 0.0002
B112: Тариф | I112: 6437.18 | J112: 6437.18 | K112: 6437.18 | L112: 6437.18 | M112: 6437.18 | N112: 6437.18
B113: Всего по отоплению (газ) | I113: =I111*I112 -> 2.16 | J113: =J111*J112 -> 2.35 | K113: 1.30 | L113: 1.17 | M113: 1.93 | N113: 0.99
B114: Общие затраты на коммунальные услуги | C114: =C65+C88+C100 -> 19.21 | D114: =D65+D88+D100 -> 18.69 | E114: 17.64 | F114: 16.35 | G114: 14.92 | H114: 15.98 | I114: =I65+I88+I113 -> 16.13 | J114: 15.61 | K114: 12.50 | L114: 12.69 | M114: 11.71 | N114: 10.77
B115: На 1 ребенка | C115: =C114/15 -> 1.28 | D115: 1.25 | E115: 1.18 | F115: 1.09 | G115: 0.99 | H115: 1.07 | I115: =I114/15 -> 1.08 | J115: =J114/15 -> 1.04 | K115: 0.83 | L115: 0.85 | M115: 0.78 | N115: 0.72
B116: Оплата труда уборщика служ. помещений
B117: Оклад | C117: 11163 | D117: 11163 | E117: 11163 | F117: 11163 | G117: 11163 | H117: 11163 | I117: 11163 | J117: 11163 | K117: 11163 | L117: 11163 | M117: 11163 | N117: 11163
B118: Начисления на оплату труда | C118: =C117*30.2% -> 3371.226 | D118: =D117*30.2% -> 3371.23 | E118: 3371.23 | F118: 3371.23 | G118: 3371.23 | H118: 3371.23 | I118: 3371.23 | J118: 3371.23 | K118: 3371.23 | L118: 3371.23 | M118: 3371.23 | N118: 3371.23
B119: Всего | C119: =C117+C118 -> 14534.23 | D119: =D117+D118 -> 14534.226 | E119: 14534.226 | F119: 14534.226 | G119: 14534.226 | H119: 14534.226 | I119: 14534.226 | J119: 14534.226 | K119: 14534.226 | L119: 14534.226 | M119: 14534.226 | N119: 14534.226
B120: Нагрузка персонала, час | C120: 40 | D120: 40 | E120: 40 | F120: 40 | G120: 40 | H120: 40 | I120: 40 | J120: 40 | K120: 40 | L120: 40 | M120: 40 | N120: 40
B121: Количество недель в месяце | C121: 4 | D121: 4 | E121: 4 | F121: 4 | G121: 4 | H121: 4 | I121: 4 | J121: 4 | K121: 4 | L121: 4 | M121: 4 | N121: 4
B122: Количество детей в группе | C122: 15 | D122: 15 | E122: 15 | F122: 15 | G122: 15 | H122: 15 | I122: 15 | J122: 15 | K122: 15 | L122: 15 | M122: 15 | N122: 15
B123: Всего по оплате труда тех. Песонала | C123: =C119/C120/C121/C122 -> 6.06 | D123: =D119/D120/D121/D122 -> 6.06 | E123: 6.06 | F123: 6.06 | G123: 6.06 | H123: 6.06 | I123: 6.06 | J123: 6.06 | K123: 6.06 | L123: 6.06 | M123: 6.06 | N123: 6.06
B125: Материальные затраты
B126: Канцелярские товары (для веденя документации) на 1 ребенка | C126: 1.3 | D126: 1.3 | E126: 1.3 | F126: 1.3 | G126: 1.3 | H126: 1.3 | I126: 1.3 | J126: 1.3 | K126: 1.3 | L126: 1.3 | M126: 1.3 | N126: 1.3
B127: Стоимость | C127: 1404 | D127: 1404 | E127: 1404 | F127: 1404 | G127: 1404 | H127: 1404 | I127: 1404 | J127: 1404 | K127: 1404 | L127: 1404 | M127: 1404 | N127: 1404
B128: Срок полезного использованя | C128: 8 | D128: 8 | E128: 8 | F128: 8 | G128: 8 | H128: 8 | I128: 8 | J128: 8 | K128: 8 | L128: 8 | M128: 8 | N128: 8
B129: Количество детей | C129: 15 | D129: 15 | E129: 15 | F129: 15 | G129: 15 | H129: 15 | I129: 15 | J129: 15 | K129: 15 | L129: 15 | M129: 15 | N129: 15
B130: Количество учебных месяцев | C130: 9 | D130: 9 | E130: 9 | F130: 9 | G130: 9 | H130: 9 | I130: 9 | J130: 9 | K130: 9 | L130: 9 | M130: 9 | N130: 9
B131: Расходы в месяц | C131: =C127/C128 -> 175.50 | D131: =D127/D128 -> 175.50 | E131: 175.50 | F131: 175.50 | G131: 175.50 | H131: 175.50 | I131: 175.50 | J131: 175.50 | K131: 175.50 | L131: 175.50 | M131: 175.50 | N131: 175.50
B132: Затраты на 1 ребенка за одно занятие | C132: =C131/15/4 -> 2.93 | D132: =D131/15/4 -> 2.93 | E132: 2.93 | F132: 2.93 | G132: 2.93 | H132: 2.93 | I132: 2.93 | J132: 2.93 | K132: 2.93 | L132: 2.93 | M132: 2.93 | N132: 2.93
B133: Моющие средства для уборки помещенй на 1 ребенка | C133: 1.04 | D133: 1.04 | E133: 1.04 | F133: 1.04 | G133: 1.04 | H133: 1.04 | I133: 1.04 | J133: 1.04 | K133: 1.04 | L133: 1.04 | M133: 1.04 | N133: 1.04
B134: Стоимость | C134: 1123.2 | D134: 1123.2 | E134: 1123.2 | F134: 1123.2 | G134: 1123.2 | H134: 1123.2 | I134: 1123.2 | J134: 1123.2 | K134: 1123.2 | L134: 1123.2 | M134: 1123.2 | N134: 1123.2
B135: Срок полезного использованя | C135: 8 | D135: 8 | E135: 8 | F135: 8 | G135: 8 | H135: 8 | I135: 8 | J135: 8 | K135: 8 | L135: 8 | M135: 8 | N135: 8
B136: Количество детей | C136: 15 | D136: 15 | E136: 15 | F136: 15 | G136: 15 | H136: 15 | I136: 15 | J136: 15 | K136: 15 | L136: 15 | M136: 15 | N136: 15
B137: Количество учебных месяцев | C137: 9 | D137: 9 | E137: 9 | F137: 9 | G137: 9 | H137: 9 | I137: 9 | J137: 9 | K137: 9 | L137: 9 | M137: 9 | N137: 9
B138: Расходы в месяц | C138: =C134/C135 -> 140.4 | D138: =D134/D135 -> 140.4 | E138: 140.4 | F138: 140.4 | G138: 140.4 | H138: 140.4 | I138: 140.4 | J138: 140.4 | K138: 140.4 | L138: 140.4 | M138: 140.4 | N138: 140.4
B139: Затраты на 1 ребенка за одно занятие | C139: =C138/15/4 -> 2.34 | D139: =D138/15/4 -> 2.34 | E139: 2.34 | F139: 2.34 | G139: 2.34 | H139: 2.34 | I139: 2.34 | J139: 2.34 | K139: 2.34 | L139: 2.34 | M139: 2.34 | N139: 2.34
B140: Итого по материальным затратам | C140: =C132+C139 -> 5.27 | D140: =D132+D139 -> 5.27 | E140: 5.27 | F140: 5.27 | G140: 5.27 | H140: 5.27 | I140: 5.27 | J140: 5.27 | K140: 5.27 | L140: 5.27 | M140: 5.27 | N140: 5.27
B142: Расчет стоимости одного занятия на 1 человека
B143: Расчет цены на оказание платной услуги
B144: Затраты на оплату труда основного персонала | C144: 326.85 | D144: 326.85 | E144: 326.85 | F144: 326.85 | G144: 326.85 | H144: 326.85 | I144: 326.85 | J144: 326.85 | K144: 326.85 | L144: 326.85 | M144: 326.85 | N144: 326.85
B145: Затраты материальных запасов | C145: 241.84 | D145: 241.84 | E145: 241.84 | F145: 241.84 | G145: 241.84 | H145: 241.84 | I145: 241.84 | J145: 241.84 | K145: 241.84 | L145: 241.84 | M145: 241.84 | N145: 241.84
B146: Сумма начисленной амортизации оборудования, используемого при оказании платной услуги | C146: 239.42 | D146: 239.42 | E146: 239.42 | F146: 239.42 | G146: 239.42 | H146: 239.42 | I146: 239.42 | J146: 239.42 | K146: 239.42 | L146: 239.42 | M146: 239.42 | N146: 239.42
B147: Накладные затраты, относмые на платные услуги | C147: =C55*15 -> 189.00 | D147: =D55*15 -> 188.55 | E147: 187.50 | F147: 186.15 | G147: 184.80 | H147: 185.85 | I147: 186.00 | J147: 185.40 | K147: 182.25 | L147: 182.55 | M147: 181.50 | N147: 180.60
B148: Итого затрат | C148: =C144+C145+C146+C147 -> 997.11 | D148: =D144+D145+D146+D147 -> 996.66 | E148: 995.61 | F148: 994.26 | G148: 992.91 | H148: 993.96 | I148: 994.11 | J148: 993.51 | K148: 990.36 | L148: 990.66 | M148: 989.61 | N148: 988.71
B149: Цена на 1 платную услугу | C149: =C148/15 -> 66.47 | D149: =D148/15 -> 66.44 | E149: 66.37 | F149: 66.28 | G149: 66.19 | H149: 66.26 | I149: 66.27 | J149: 66.23 | K149: 66.02 | L149: 66.04 | M149: 65.97 | N149: 65.91
B150: Цена в месяц на 1 ребенка на 4 занятия | C150: =C149*4 -> 266 | D150: =D149*4 -> 266 | E150: 265 | F150: 265 | G150: 265 | H150: 265 | I150: 265 | J150: 265 | K150: 264 | L150: 264 | M150: 264 | N150: 264

Sheet Лист2

Sheet Лист3
